{"text_format":"3","workbook":"xlsx","n_sheets":4,"sheets":["Общая инфраструктура","Рабочее место конкурсантов","Расходные материалы","Личный инструмент участника"],"read":"whole","date_system":"1900"}

{"sheet":"Общая инфраструктура","index":0,"n_rows":77,"n_cols":8,"rows_kept":77,"merged":[[0,0,0,7],[1,0,1,7],[2,0,2,7],[3,0,3,7],[4,0,4,7],[5,0,5,7],[6,0,6,7],[7,0,7,7],[8,0,8,7],[9,0,9,7],[10,0,10,1],[10,2,10,7],[11,0,11,7],[12,0,12,7],[13,0,13,7],[14,0,14,7],[15,0,15,7],[16,0,16,7],[17,0,17,7],[18,0,18,7],[19,0,19,7],[20,0,20,7],[21,0,21,7],[26,0,26,7],[27,0,27,7],[28,0,28,7],[29,0,29,7],[30,0,30,7],[31,0,31,7],[32,0,32,7],[33,0,33,7],[34,0,34,7],[35,0,35,7],[42,0,42,7],[43,0,43,7],[44,0,44,7],[45,0,45,7],[46,0,46,7],[47,0,47,7],[48,0,48,7],[49,0,49,7],[50,0,50,7],[51,0,51,7],[58,0,58,7],[63,0,63,7],[64,0,64,7],[65,0,65,7],[66,0,66,7],[67,0,67,7],[68,0,68,7],[69,0,69,7],[70,0,70,7],[71,0,71,7],[72,0,72,7]]}
["ПРОЕКТ"]
["Инфраструктурный лист для оснащения конкурсной площадки Чемпионата (Региональный этап)\nЭлектромонтаж"]
["Основная информация о конкурсной площадке:"]
["Субъект Российской Федерации: Республики Марий Эл"]
["Базовая организация расположения конкурсной площадки: ГБПОУ Республики Марий Эл \"Транспортно-Энергетический техникум\""]
["Адрес базовой организации: Республика Марий Эл Звениговский район с. Красный Яр, ул.Центральная, д.15, "]
["Главный эксперт: Рысков Александр Евгеньевич  (89061387856 riskov87@mail.ru)"]
["Технический эксперт: Новокшанов Андрей Николаевич (89613764290 novokshanov1962@yandex.ru)"]
["Количество экспертов (в том числе с главным экспертом): 7"]
["Количество конкурсантов (команд): 10 (5)"]
["Количество рабочих мест: 5"]
["Даты проведения: 03.04.2023-07.04.2023"]
["Общая зона конкурсной площадки (оборудование, инструмент, мебель, канцелярия)"]
["Требования к обеспечению зоны (коммуникации, площадь, сети, количество рабочих мест и др.): "]
["Площадь зоны: не менее 189 кв.м."]
["Освещение: Допустимо верхнее искусственное освещение ( не менее 300 люкс) "]
["Интернет : Подключение  ноутбуков к беспроводному интернету (с возможностью подключения к проводному интернету) \t"]
["Электричество: подключения к сети по 220 Вольт и 380 Вольт на каждое рабочее место с индивидуальным аппаратом защиты\t"]
["Контур заземления для электропитания и сети слаботочных подключений (при необходимости): дополнительного  не требуется."]
["Покрытие пола:  плитка  - 189 м2 на всю зону"]
["Подведение/ отведение ГХВС (при необходимости) : не требуется"]
["Подведение сжатого воздуха (при необходимости): не требуется"]
["№","Наименование ","Краткие (рамочные) технические характеристики","Вид","Количество","Единица измерения","Итоговое количество","Рекомендации представителей индустрии (указывается конкретное оборудование)"]
[1,"Офисный стол","Внести необходимую информацию","Мебель",5,"шт",5]
[2,"Стул","Внести необходимую информацию","Мебель",5,"шт",5]
[3,"Стелаж","Внести необходимую информацию","Мебель",5,"шт",5]
["Комната Конкурсантов (по количеству конкурсантов)"]
["Требования к обеспечению зоны (коммуникации, площадь, сети, количество рабочих мест и др.): "]
["Площадь зоны: не менее 62 кв.м."]
["Освещение: Допустимо верхнее искусственное освещение ( не менее 300 люкс)"]
["Интернет : Подключение  ноутбуков к беспроводному интернету (с возможностью подключения к проводному интернету) \t"]
["Электричество: 1 подключения к сети  по (220 Вольт и 380 Вольт)\t"]
["Контур заземления для электропитания и сети слаботочных подключений (при необходимости) : не требуется"]
["Покрытие пола: линолиум  - 62 м2 на всю зону"]
["Подведение/ отведение ГХВС (при необходимости) : не требуется"]
["Подведение сжатого воздуха (при необходимости): не требуется"]
["№","Наименование ","Краткие (рамочные) технические характеристики","Вид","Количество","Единица измерения","Итоговое количество","Рекомендации представителей индустрии (указывается конкретное оборудование)"]
[1,"Вешалка","на усмотрение организатора","Оборудование",2,"шт ( на 1 раб.место) ",10]
[2,"Стол","стандартный, офисный \nстолешница не тоньше 25 мм","Мебель",2,"шт ( на 1 раб.место) ",6]
[3,"Стул","на вес не менее 100 кг, без колесиков\nSize - 54х42х77 cm\nExtra details - 4 ножки, без подлокотников","Оборудование IT",2,"шт ( на 1 раб.место) ",12]
[4,"Розетка","на усмотрение организатора","ПО",1,"шт ( на 1 раб.место) ",5]
[5,"Мусорная корзина","на усмотрение организатора",null,1,null,1]
["Комната Экспертов (включая Главного эксперта) (по количеству экспертов)"]
["Требования к обеспечению зоны (коммуникации, площадь, сети, количество рабочих мест и др.): "]
["Площадь зоны: не менее 62 кв.м."]
["Освещение: Допустимо верхнее искусственное освещение ( не менее 300 люкс)"]
["Интернет : Подключение  ноутбуков к беспроводному интернету (с возможностью подключения к проводному интернету) \t"]
["Электричество: 2 подключения к сети  по (220 Вольт )\t"]
["Контур заземления для электропитания и сети слаботочных подключений (при необходимости) : не требуется"]
["Покрытие пола: линолеум  - 62 м2 на всю зону"]
["Подведение/ отведение ГХВС (при необходимости) : не требуется"]
["Подведение сжатого воздуха (при необходимости): не требуется"]
["№","Наименование ","Краткие (рамочные) технические характеристики","Вид","Количество","Единица измерения","Итоговое количество","Рекомендации представителей индустрии (указывается конкретное оборудование)"]
[1,"Ноутбук","не ниже Intel core i5, с предустановленным ПО (MS Office 2010, Autocad 2016, ETS5)","Оборудование IT",1,"шт",1]
[2,"Запасной картридж для МФУ","на усмотрение организатора","Расходные материалы",2,"шт",2]
[3,"Офисный стол","стандартный, офисный\nстолешница не тоньше 25 мм","Мебель",6,"шт",6]
[4,"стул","на вес не менее 100 кг, без колесиков\nSize - 54х42х77 cm\nExtra details - 4 ножки, без подлокотников","Мебель",12,"шт",12]
[5,"Мусорная корзина",null,null,1,"шт",1]
["Охрана труда и техника безопасности"]
["№","Наименование ","Краткие (рамочные) технические характеристики","Вид","Количество","Единица измерения","Итоговое количество","Рекомендации представителей индустрии (указывается конкретное оборудование)"]
[1,"Аптечка","на усмотрение организатора","Охрана труда",1,"шт",{"$f":"E61","v":1}]
[2,"Огнетушитель","на усмотрение организатора","Охрана труда",1,"шт",{"$f":"E62","v":1}]
[3,"Кулер 19 л (холодная/горячая вода)","на усмотрение организатора","Охрана труда",1,"шт",{"$f":"E63","v":1}]
["Складское помещение"]
["Требования к обеспечению зоны (коммуникации, площадь, сети, количество рабочих мест и др.): "]
["Площадь зоны: не менее 25 кв.м."]
["Освещение: Допустимо верхнее искусственное освещение ( не менее 300 люкс)"]
["Интернет : Подключение  ноутбуков к беспроводному интернету "]
["Электричество:  1 подключения к сети  по (220 Вольт и 380 Вольт)\t"]
["Контур заземления для электропитания и сети слаботочных подключений (при необходимости) : не требуется"]
["Покрытие пола: плитка  - 25 м2 на всю зону"]
["Подведение/ отведение ГХВС (при необходимости) : не требуется"]
["Подведение сжатого воздуха (при необходимости): не требуется"]
["№","Наименование ","Краткие (рамочные) технические характеристики","Вид","Количество","Единица измерения","Итоговое количество","Рекомендации представителей индустрии (указывается конкретное оборудование)"]
[1,"Офисный стол","Внести необходимую информацию","Мебель",1,"шт",1]
[2,"Стул","Внести необходимую информацию","Мебель",1,"шт",1]
[3,"Стелаж","Внести необходимую информацию","Мебель",6,"шт",6]

{"sheet":"Рабочее место конкурсантов","index":1,"n_rows":64,"n_cols":8,"rows_kept":64,"merged":[[0,0,0,7],[1,0,1,7],[2,0,2,7],[3,0,3,7],[4,0,4,7],[5,0,5,7],[6,0,6,7],[7,0,7,7],[8,0,8,7],[9,0,9,7],[10,0,10,1],[10,2,10,7],[11,0,11,7],[12,0,12,7],[13,0,13,7],[14,0,14,7],[15,0,15,7],[16,0,16,7],[17,0,17,7],[18,0,18,7],[19,0,19,7],[20,0,20,7],[21,0,21,7],[22,0,22,7],[36,0,36,7],[45,0,45,7],[46,0,46,7],[47,0,47,7],[48,0,48,7],[49,0,49,7],[50,0,50,7],[51,0,51,7],[52,0,52,7],[53,0,53,7],[54,0,54,7],[55,0,55,7],[62,0,62,7]]}
["ПРОЕКТ"]
["Инфраструктурный лист для оснащения конкурсной площадки Чемпионата (Региональный этап)\nЭлектромонтаж"]
["Основная информация о конкурсной площадке:"]
["Субъект Российской Федерации:  Республики Марий Эл"]
["Базовая организация расположения конкурсной площадки: ГБПОУ Республики Марий Эл \"Транспортно-Энергетический техникум\""]
["Адрес базовой организации: Республика Марий Эл Звениговский район с. Красный Яр, ул.Центральная, д.15, "]
["Главный эксперт: Рысков Александр Евгеньевич  (89061387856 riskov87@mail.ru)"]
["Технический эксперт: Новокшанов Андрей Николаевич (89613764290 novokshanov1962@yandex.ru)"]
["Количество экспертов (в том числе с главным экспертом): 7"]
["Количество конкурсантов (команд): 10 (5)"]
["Количество рабочих мест: 5"]
["Даты проведения: 03.04.2023-07.04.2023"]
["1. Зона для работ предусмотренных в Модулях обязательных к выполнению (инвариант)  (5 рабочих мест) "]
["Рабочее место Конкурсанта (основное оборудование, вспомогательное оборудование, инструмент (по количеству рабочих мест)"]
["Требования к обеспечению зоны (коммуникации, площадь, сети, количество рабочих мест и др.): "]
["Площадь зоны: не менее 84 кв.м."]
["Освещение: Допустимо верхнее искусственное освещение ( не менее 300 люкс)"]
["Интернет : Подключение  ноутбуков к беспроводному интернету"]
["Электричество: 3 кВт подключения к сети  по (220 Вольт и 380 Вольт)\t"]
["Контур заземления для электропитания и сети слаботочных подключений (при необходимости) : не требуется"]
["Покрытие пола: линолеум "]
["Подведение/ отведение ГХВС (при необходимости) : не требуется"]
["Подведение сжатого воздуха (при необходимости): не требуется"]
["№","Наименование ","Краткие (рамочные) технические характеристики","Вид","Количество","Единица измерения","Итоговое количество","Рекомендации представителей индустрии (указывается конкретное оборудование)"]
[1,"Рабочая кабинка с номером, без потолка с перекладиной для установки светильника.","Рабочая поверхность размеры: 2 по 1525х2400, толщина листов 18мм, материал фанера (ламинированная ДСП) , угол поворота между  плоскостями 90º","Застройка",1,"шт ( на 1 раб.место) ",5]
[2,"Бокс КМПн 2/9-2 IP31 ","Пример: MKP42-N-09-31-02","оборудование для электрификации и освещения",1,"шт ( на 1 раб.место) ",1]
[3,"Авт. выкл. ВА47-29 3Р 25А 4,5кА х-ка С","ПРИМЕР: MVA20-3-025-C","оборудование для электрификации и освещения",1,"шт ( на 1 раб.место)",1]
[4,"АВДТ32М С16 30мА ","ПРИМЕР: MAD22-5-016-C-30","оборудование для электрификации и освещения",1,"шт ( на 1 раб.место)",1]
[5,"Шины на DIN-рейку в корпусе (кросс-модуль) ШНК 2х7 L+PEN ","ПРИМЕР: YND10-2-07-100","оборудование для электрификации и освещения",1,"шт ( на 1 раб.место) ",1]
[6,"Розетка 2-местная для открытой установки РС22-3-ОБ с заземляющим контактом 16А","ПРИМЕР: ERO21-K01-16-DC","оборудование для электрификации и освещения",1,"шт ( на 1 раб.место) ",1]
[7,"Электромонтажный стол 1000х800 750мм.","ПРИМЕР:https://yandex.ru/images/search?text=%D1%8D%D0%BB%D0%B5%D0%BA%D1%82%D1%80%D0%BE%D0%BC%D0%BE%D0%BD%D1%82%D0%B0%D0%B6%D0%BD%D1%8B%D0%B9%20%D1%81%D1%82%D0%BE%D0%BB%201000%D1%85800%20%D0%B2%D0%B5%D1%80%D1%81%D1%82%D0%B0%D0%BA%D0%BE%D1%84%D1%84&from=tabbar&p=2&pos=6&rpt=simage&img_url=http%3A%2F%2Fgarage-pro.ru%2Fwp-content%2Fuploads%2F2020%2F09%2Fproffi-116-d3-stol-dlya-slesarnyh-rabot.jpeg&lr=41","мебель",1,"шт ( на 1 раб.место) ",5]
[8,"Верстак ","ширина 700 мм, длина 2000 мм, высота 840 мм,","мебель",1,"шт ( на 1 раб.место) ",5]
[9,"Ящик для материалов (пластиковый короб)","560x390x280","оборудование",1,"шт ( на 1 раб.место) ",5]
[10,"Инструментальная тележка трех ярусная открытая ","На усмотрение организатора","мебель",1,"шт ( на 1 раб.место) ",5]
[11,"Ящик инструментальный","ПРИМЕР:https://yandex.ru/images/search?text=%D0%BF%D0%B5%D1%80%D0%B5%D0%BD%D0%BE%D1%81%D0%BD%D0%B0%D1%8F%20%D1%82%D0%B5%D0%BB%D0%B5%D0%B6%D0%BA%D0%B0%20%D0%B2%D0%B5%D1%80%D1%81%D1%82%D0%B0%D0%BA%D0%BE%D1%84%D1%84&from=tabbar&pos=4&img_url=http%3A%2F%2Fi.40nog.ru%2Fget-mpic%2F1417902%2Fimg_id3561583536342422477.jpeg&rpt=simage&lr=41","мебель",1,"шт ( на 1 раб.место) ",5]
[12,"Пила с поворотным стуслом","На усмотрение организатора",null,1,"шт ( на 1 раб.место) ",5]
["Охрана труда и техника безопасности"]
["№","Наименование ","Краткие (рамочные) технические характеристики","Вид","Количество","Единица измерения","Итоговое количество","Рекомендации представителей индустрии (указывается конкретное оборудование)"]
[1,"Аптечка","На усмотрение организатора","Охрана труда",1,"шт",{"$f":"E39","v":1}]
[2,"Устройство для промывки глаз","На усмотрение организатора","Охрана труда",1,"шт",1]
[3,"Огнетушитель","ОП-5","Охрана труда",2,"шт",2]
[4,"Кулер 19 л (холодная/горячая вода)","На усмотрение организатора","Охрана труда",1,"шт",{"$f":"E42","v":1}]
[5,"Спецодежда, спецобувь","закрытая обувь, рабочий костюм электрика или халат, головной убор (предпочтительно - каскетка)",null,1,"шт","конкурсант привозит с собой"]
[6,"Диэлектрический коврик;","На усмотрение организатора","оборудование",1,"шт",1]
[7,"Веник и совок;","На усмотрение организатора","оборудование",1,"шт",1]
["1. Зона для работ предусмотренных в вариативном модуле № 1   (1 рабочих мест) "]
["Рабочее место Конкурсанта (дополнительное оборудование, инструмент для выполнения модуля (по количеству рабочих мест)"]
["Требования к обеспечению зоны (коммуникации, площадь, сети, количество рабочих мест и др.): "]
["Площадь зоны: не менее 50 кв.м."]
["Освещение: Допустимо верхнее искусственное освещение ( не менее _300__ люкс) "]
["Интернет : Подключение  ноутбуков к беспроводному интернету (с возможностью подключения к проводному интернету) \t"]
["Электричество: 3 кВт подключения к сети  по (220 Вольт и 380 Вольт)\t"]
["Контур заземления для электропитания и сети слаботочных подключений (при необходимости) : требуется"]
["Покрытие пола: линолеум "]
["Подведение/ отведение ГХВС (при необходимости) : не требуется"]
["Подведение сжатого воздуха (при необходимости): не требуется"]
["№","Наименование ","Краткие (рамочные) технические характеристики","Вид","Количество","Единица измерения","Итоговое количество","Рекомендации представителей индустрии (указывается конкретное оборудование)"]
[1,"Стол ","На усмотрение организатора","Мебель",5,"шт",5]
[2,"Стул","На усмотрение организатора","Мебель",5,"шт",5]
[3,"Стенд поиска неисправностей","На усмотрение организатора","оборудование (собранная установка)",2,"шт",2]
[4,"Мультиметр","На усмотрение организатора","оборудование",1,null,5]
[5]
["Охрана труда и техника безопасности (дополнительно)"]
["№","Наименование ","Краткие (рамочные) технические характеристики","Вид","Количество","Единица измерения","Итоговое количество","Рекомендации представителей индустрии (указывается конкретное оборудование)"]

{"sheet":"Расходные материалы","index":2,"n_rows":125,"n_cols":8,"rows_kept":125,"merged":[[0,0,0,7],[1,0,1,7],[2,0,2,7],[3,0,3,7],[4,0,4,7],[5,0,5,7],[6,0,6,7],[7,0,7,7],[8,0,8,7],[9,0,9,7],[10,0,10,1],[10,2,10,7],[11,0,11,7],[12,0,12,7],[13,0,13,7],[99,0,99,7],[102,0,102,7],[108,0,108,7],[109,0,109,7],[115,0,115,7],[119,0,119,7],[120,0,120,7],[123,0,123,7]]}
["ПРОЕКТ"]
["Инфраструктурный лист для оснащения конкурсной площадки Чемпионата (Региональный этап)\nЭлектромонтаж"]
["Основная информация о конкурсной площадке:"]
["Субъект Российской Федерации:  Красноярский край"]
["Базовая организация расположения конкурсной площадки: КГБПОУ \"Канский  технологический колледж\""]
["Адрес базовой организации: Красноярский край Канский район город Канск, ул.Кайтымская, д.56, "]
["Главный эксперт: Притуляк Марина Александровна 89832883225 mar.prituliak@yandex.ru"]
["Технический эксперт: Родионов Валерий Евгеньевич 89233710156 valera-rodionov-2012@mail.ru"]
["Количество экспертов (в том числе с главным экспертом): 7"]
["Количество конкурсантов (команд): 10 (5)"]
["Количество рабочих мест: 5"]
["Даты проведения: 23.04.2023-27.04.2023"]
["1. Зона для работ предусмотренных в Модулях обязательных к выполнению (инвариант)  (по количеству конкурсантов) "]
["Рабочее место Конкурсанта (расходные материалы по количеству конкурсантов)"]
["№","Наименование ","Краткие (рамочные) технические характеристики","Вид","Количество","Единица измерения","Итоговое количество","Рекомендации представителей индустрии (указывается конкретное оборудование)"]
[1,"Корпус металлический с монтажной панелью ВШГ(500×400×220) ЩМП 2.0","ПРИМЕР: \nЩМП 2.0","Расходные материалы",1,"шт.",5]
[2,"Бокс ЩРН-П-36 модулей навесн.пластик IP41 ","ПРИМЕР: \nMKP12-N-36-40-05","Расходные материалы",1,"шт.",5,"IEK"]
[3,"Выключатель автоматический трехполюсный 25А C ВА47-29 4.5кА","Пример:\nMVA20-3-025-C","Расходные материалы",1,"шт",{"$f":"E18*5","v":5},"IEK"]
[4,"Авт. выкл.ВА47-29 3Р 16А 4,5кА х-ка С ","ПРИМЕР: \nMVA20-3-016-C","Расходные материалы",2,"шт.",10,"IEK"]
[5,"Выключатель дифференциального тока (УЗО) ВД1-63S 4Р 25А 100мА(Электромеханическое)","Пример:\nMDV12-4-025-100","Расходные материалы",1,"шт",5,"IEK"]
[6,"Авт. выкл.ВА47-29 1Р 10А 4,5кА х-ка С ","ПРИМЕР: \nMVA20-1-010-C","Расходные материалы",3,"шт.",15,"IEK"]
[7,"Выключатель ВА47-29 1п 6А х-ка C 4,5кА MVA20-1-006-C IEK","MVA20-1-006-C","Расходные материалы",1,"шт.",5,"IEK"]
[8,"Выкл. авт. диф. тока АВДТ32МL С16 30мА KARAT IEK","ПРИМЕР: \nMMVD12-1-016-C-030","Расходные материалы",1,"шт.",5,"IEK"]
[9,"Контактор модульный КМ20-40 AC ","ПРИМЕР: \nMKK20-20-40","Расходные материалы",2,"шт.",10,"IEK"]
[10,"Логическое реле PLR-S. USB кабель серии ","ПРИМЕР: \nPLR-S-CABLE-USB","Расходные материалы",1,"шт.",5]
[11,"Логическое реле PLR-S. CPU1206 230В","ПРИМЕР: \nPLR-S-CPU-1206R-AC-BE","Расходные материалы",1,"шт.",5,"ONI"]
[12,"Реле задержки включения ORT. 1 конт. 12-240 В AС/DC","Пример:\nORT-A1-ACDC12-240V","Расходные материалы",1,"шт",5,"IEK"]
[13,"Реле задержки выключения ORT. 1 конт. 12-240 В AС/DC","Пример:\nORT-B1-ACDC12-240V","Расходные материалы",1,"шт",5,"IEK"]
[14,"Звонок на DIN-рейку","Пример: \nMZD10-230","Расходные материалы",1,"шт",5,"IEK"]
[15,"Заглушка 12 модулей серая UNIVERSAL/PRO","ПРИМЕР: \nYIS50-12-K03","Расходные материалы",2,"шт",10,"IEK"]
[16,"Ограничитель на DIN-рейку(металл) ","ПРИМЕР: \nYXD10","Расходные материалы",16,"шт.",80,"IEK"]
[17,"Зажим наборный ЗНИ-4мм2 (JXB35А) серый        ","ПРИМЕР: \nYZN10-004-K03","Расходные материалы",40,"шт.",200,"IEK"]
[18,"Зажим наборный ЗНИ-4мм2 (JXB35А) синий        ","ПРИМЕР: \nYZN10-004-K07","Расходные материалы",10,"шт.",50,"IEK"]
[19,"Зажим наборный ЗНИ-4PEN 4мм2 (JXB-земля)     ","ПРИМЕР: \nYZN20-004-K52","Расходные материалы",10,"шт.",50,"IEK"]
[20,"Заглушка для ЗНИ4-6мм2(JXB35-50А) серый      ","ПРИМЕР: \nYZN10D-ZGL-006-K03","Расходные материалы",8,"шт.",40,"IEK"]
[21,"Сальник d20мм (Dотв 22мм)","ПРИМЕР: \nYSA40-20-22-68-K41","Расходные материалы",4,"шт",20]
[22,"Датчик движения ДД 025 белый, 1200Вт, 360 гр.,6М,IP20, ","ПРИМЕР:\nLDD11-025-1200-001","Расходные материалы",1,"шт.",5,"TDM"]
[23,"Выключатель концевой ВК-300-БР-11-67У2-21, рычаг с роликом, ход вправо, cсамовозврат, ст. 2- 51мм, IP67, ","ПРИМЕР: ВПК-2111\nKV-1-300-1","Расходные материалы",2,"шт",10]
[24,"РКС-20-32-П-К Розетка с з/к 2к (на 2 модуля) ПРАЙМЕР красная ","ПРИМЕР: \nCKK-40D-RSZK2-K04-K","Расходные материалы",2,"шт.",10,"IEK"]
[25,"Выключатель проходной (переключатель) одноклавишный","Пример:\nCKK-40D-PO2-K01","Расходные материалы",2,"шт.",10,"IEK"]
[26,"Рамка и суппорт для К.К. \"Праймер\" на 4 модуля 45х45 белый ","Пример:\nCKK-40D-RSU4-075-K01","Расходные материалы",2,"шт",10,"IEK"]
[27,"Корпус КП103 для кнопок 3место белый ИЭК","Пример:\nBKP10-3-K01","Расходные материалы",2,"шт",10,"IEK"]
[28,"Лампа AD22DS LED матрица 22мм красный 230В","Пример:\nBLS10-ADDS-230-K04","Расходные материалы",1,"шт",5,"IEK"]
[29,"Лампа AD22DS(LED)матрица d22мм зеленый 230В  ","Пример:\nBLS10-ADDS-230-K06","Расходные материалы",2,"шт.",10,"IEK"]
[30,"Светильник светодиодный ДБП-8w 4000K 560Лм IP65","ПРИМЕР: \nLDPO0-5010-08-4000-K01","Расходные материалы",4,"шт.",20]
[31,"Розетка стационарная ССИ-114 16А-6ч/200/346-240/415В 3Р+РЕ IP44 MAGNUM ","ПРИМЕР: \nPSN12-016-4","Расходные материалы",1,"шт",5,"IEK"]
[32,"Вилка переносная ССИ-014 16А-6ч/200/346-240/415В 3Р+РЕ IP44 MAGNUM ","ПРИМЕР: \nPSN02-016-4","Расходные материалы",1,"шт.",5,"IEK"]
[33,"Вилка 515 стационарная 3Р+РЕ+N16А 380В IP44 ","ПРИМЕР: \nPSR52-016-5","Расходные материалы",1,"шт.",5,"IEK"]
[34,"Переносная розетка ССИ-215, 16А 3P+PE+N","ПРИМЕР: \nPSR22-016-5","Расходные материалы",1,"шт.",5,"IEK"]
[35,"Эл.Двиг.3ф.АИР 56B4 380В 0,18кВт 1500об/мин 1081 DRIVE ","ПРИМЕР: \nDRV056-B4-000-2-1510","Расходные материалы",1,"шт",5]
[36,"Сальник PG-13.5 диаметр кабеля 7-11мм IP54","ПРИМЕР:\nYSA20-12-13-54-K41\n","Расходные материалы",4,"шт",20]
[37,"Сальник PG-16 диаметр кабеля 9-13мм IP54","ПРИМЕР: \nCYSA20-12-13-54-K41","Расходные материалы",2,"шт.",10]
[38,"Кнопка управления LAY5-BA31 без подсветки зеленая","ПРИМЕР:\nBBT60-BA-K06","Расходные материалы",3,"шт",15,"IEK"]
[39,"Клеммник ЗВИ-3 1.0-2.5мм.кв. 12пар (UZV3-003-04)","ПРИМЕР: UZV3-003-04","Расходные материалы",1,"упак",5,"IEK"]
[40,"Коробка уст. откр.пр. (88x88x44) IP20, белая стыкуемая КМКУ 'ЭЛЕКОР'","ПРИМЕР: CKK10D-U-1-K01","Расходные материалы",3,"шт",15,"IEK"]
[41,"Выключатель 1кл кнопочный 10А, Кварта, белый ВСк10-1-0-КБ","ПРИМЕР: EVK13-K01-10-DM","Расходные материалы",2,"шт",10,"IEK"]
[42,"Выключатель одноклавишный 10А, Кварта, белый ВС10-1-0-КБ","ПРИМЕР: EVK10-K01-10-DM","Расходные материалы",1,"шт",5,"IEK"]
[43,"Кабель-канал 100х60 \"ПРАЙМЕР\" парапетный","ПРИМЕР: \nCKK40-100-060-1-K01","Расходные материалы",4,"м.",20,"IEK"]
[44,"Кабель-канал 25х16 \"ЭЛЕКОР\" (50 м)","ПРИМЕР: \nCKK10-025-016-1-K01","Расходные материалы",2,"м.",10]
[45,"Труба гладкая жесткая ПВХ d16 ИЭК серая (93м),3м","ПРИМЕР: \nCTR10-020-K41-093I","Расходные материалы",3,"м",15]
[46,"Держатель с защёлкой CF20 IEK","ПРИМЕР: CTA10D-CF20-K41-100","Расходные материалы",6,"шт",30,"IEK"]
[47,"Держатель с защёлкой CF16 ","ПРИМЕР: \nCTA10D-CF16-K41-100","Расходные материалы",34,"шт",170,"IEK"]
[48,"Муфта труба-коробка IP65 BS16 ","ПРИМЕР: \nCTA10D-BS16-K41-050","Расходные материалы",4,"шт",20,"IEK"]
[49,"Лоток проволочный 35х100","ПРИМЕР: \nCLWG10-035-100-3","Расходные материалы",6,"м",30,"IEK"]
[50,"Кронштейн настенный осн.150 мм","ПРИМЕР: \nCLP1CW-150-1","Расходные материалы",11,"шт",55,"IEK"]
[51,"Соединительный комплект двойной MDS20","ПРИМЕР: \nCLW10-MDS-20","Расходные материалы",22,"шт",110,"IEK"]
[52,"Труба гладкая жесткая ПВХ d20 ИЭК серая (93м),3м","ПРИМЕР: CTR10-020-K41-093I","Расходные материалы",1,"м",5]
[53,"Муфта труба-коробка 20 мм IP65","ПРИМЕР: CTA10D-BS20-K41-050","Расходные материалы",1,"шт",5,"IEK"]
[54,"Заглушка для К.К. 100х60 'ПРАЙМЕР'","ПРИМЕР: CKK-40D-Z-100-060-K01","Расходные материалы",3,"шт",15]
[55,"Труба гофрированная ПНД d 16 с зондом (10 м) черный","ПРИМЕР: CTG20-16-K02-010-1","Расходные материалы",3,"м",15]
[56,"Провод ПВС 3х1,5 мм2","На усмотрение организатора","Расходные материалы",20,"м.",100]
[57,"Провод ПВС 3х2,5 мм2","На усмотрение организатора","Расходные материалы",10,"м.",50]
[58,"Провод ПВС 5х1,5 мм2","На усмотрение организатора","Расходные материалы",10,"м.",50]
[59,"Провод ПВС 5х2,5 мм2","На усмотрение организатора","Расходные материалы",15,"м.",75]
[60,"Провод гибкий ПВ-3 (ПУГВ) 1х1,5 мм2 (черный/красный/белый)","На усмотрение организатора","Расходные материалы",45,"м.",{"$f":"E75*5","v":225}]
[61,"Провод гибкий ПВ-3 (ПУГВ) 1х1,5 мм2 (синий)","На усмотрение организатора","Расходные материалы",25,"м.",125]
[62,"Провод гибкий ПВ-3 (ПУГВ) 1х2,5 мм2 (черный/красный/белый)","На усмотрение организатора","Расходные материалы",25,"м.",125]
[63,"Провод гибкий ПВ-3 (ПУГВ) 1х2,5 мм2 (синий)","На усмотрение организатора","Расходные материалы",15,"м.",75]
[64,"Провод гибкий ПВ-3 (ПУГВ) 1х2,5 мм2 (желто-зеленый)","На усмотрение организатора","Расходные материалы",15,"м.",75]
[65,"Наконечник кабельный НКИ 5.5-6 желтый (100шт) (UNL20-006-6-6)","ПРИМЕР: UNL20-006-6-6","Расходные материалы",1,"упак",5,"IEK"]
[66,"Наконечник кабельный НШвИ 6-12 черный Е6012 (100шт) (UGN10-006-06-12)","ПРИМЕР: UGN10-006-06-12","Расходные материалы",1,"упак",5,"IEK"]
[67,"Провод ПУГВнг(А)-LS 1х6 бухта 100м желто-зеленый многопроволо чный","На усмотрение организатора","Расходные материалы",6,"м.",30,"IEK"]
[68,"Наконечник-гильза Е1508 1,5мм2 с изолированным фланцем (красный) (100 шт) ","ПРИМЕР: \nUGN10-D15-03-08","Расходные материалы",3,"упак",15,"IEK"]
[69,"Наконечник-гильза НГИ2 1,5-12 с изолированным фланцем (красный) (100 шт) ","ПРИМЕР: \nUTE10-D2-6-100","Расходные материалы",3,"упак",15,"IEK"]
[70,"Наконечник-гильза Е2508 2,5мм2 с изолированным фланцем (синий) (100шт) ","ПРИМЕР: \nUGN10-D25-04-08","Расходные материалы",1,"упак",5,"IEK"]
[71,"Наконечник-гильза НГИ2 2,5-10 с изолированным фланцем (фиолетовый) (100шт) ","ПРИМЕР: \nUTE10-D3-2-100","Расходные материалы",1,"упак",5,"IEK"]
[72,"Наконечник изолированный НВИ-н 1,25-4 вилка 0,5-1,5мм (100шт) ","ПРИМЕР: \nUNL11-D15-4-4","Расходные материалы",1,"упак",5,"IEK"]
[73,"Наконечник изолированный НВИ-н 2-4 вилка 1,5-2,5мм (100шт) ","ПРИМЕР: \nUNL11-D25-4-4","Расходные материалы",1,"упак",5,"IEK"]
[74,"Изолента 0,13х15 мм красная 10 метров ","ПРИМЕР: \nUIZ-13-10-10M-K04","Расходные материалы",1,"шт",5]
[75,"Изолента 0,13х15 мм синяя 10 метров ","ПРИМЕР: \nUIZ-13-10-10M-K07","Расходные материалы",1,"шт",5]
[76,"Изолента 0,13х15 мм желто-зеленая 10 метров ","ПРИМЕР: \nUIZ-13-10-10M-K52","Расходные материалы",1,"шт",5]
[77,"Хомут 3,6х200мм нейлон (100шт) ","ПРИМЕР: \nUHH31-D036-200-100","Расходные материалы",1,"шт",5]
[78,"Маркер МКН-\"0,1,2,3,4,5,6,7,8,9\" 1,5 мм2 (150шт/упак) IEK UMK01-02-09","ПРИМЕР: UMK01-02-09","Расходные материалы",2,"шт",10,"IEK"]
[79,"Маркер МКН-\"0,1,2,3,4,5,6,7,8,9\" 2,5 мм2 (100шт/упак) IEK UMK02-02-09","ПРИМЕР: UMK02-02-09","Расходные материалы",2,"шт",10,"IEK"]
[80,"Саморез прессшайба 4,2х19 острый","На усмотрение организатора","Расходные материалы",100,"шт",500]
[81," Саморез по дереву 3,5*19","На усмотрение организатора","Расходные материалы",100,"шт",500]
[82,"Скоба 12 мм круглая пластиковая","ПРИМЕР: USK11-12-100","Расходные материалы",1,"упак",5]
[83,"Скоба 8 мм круглая пластиковая","ПРИМЕР: USK11-08-100","Расходные материалы",1,"упак",5]
[84,"Скоба 6 мм круглая пластиковая","ПРИМЕР: USK11-06-100","Расходные материалы",1,"упак",5]
["Охрана труда и техника безопасности"]
["№","Наименование ","Краткие (рамочные) технические характеристики","Вид","Количество","Единица измерения","Итоговое количество","Рекомендации представителей индустрии (указывается конкретное оборудование)"]
[1,"Перчатки защитные","рабочие перчатки","Расходные материалы",2,"пара",10]
["Расходные материалы на всех конкурсантов и экспертов"]
["№","Наименование ","Краткие (рамочные) технические характеристики","Вид","Количество","Единица измерения","Итоговое количество","Рекомендации представителей индустрии (указывается конкретное оборудование)"]
[1,"Ручки","Внести необходимую информацию","Расходные материалы",1,"шт",{"$f":"E105","v":1}]
[2,"Карандаши","Внести необходимую информацию","Расходные материалы",1,"шт",{"$f":"E106","v":1}]
[3,"Бумага","Внести необходимую информацию","Расходные материалы",1,"упак",1]
[]
["1. Зона для работ предусмотренных в вариативном модуле №1   (по количеству конкурсантов) "]
["Рабочее место Конкурсанта (расходные материалы по количеству конкурсантов)"]
["№","Наименование ","Краткие (рамочные) технические характеристики","Вид","Количество","Единица измерения","Итоговое количество","Рекомендации представителей индустрии (указывается конкретное оборудование)"]
[1,"Стол ","На усмотрение организатора","Мебель",5,"шт",5]
[2,"Стул","На усмотрение организатора","Мебель",5,"шт",5]
[3,"Стенд поиска неисправностей","На усмотрение организатора","оборудование (собранная установка)",2,"шт",2]
[4,"Мультиметр","На усмотрение организатора","оборудование",1,null,5]
["Охрана труда и техника безопасности (дополнительно)"]
["№","Наименование ","Краткие (рамочные) технические характеристики","Вид","Количество","Единица измерения","Итоговое количество","Рекомендации представителей индустрии (указывается конкретное оборудование)"]
[]
[]
["1. Зона для работ предусмотренных в вариативном модуле №…..   (по количеству конкурсантов) "]
["Рабочее место Конкурсанта (расходные материалы по конкурсантов)"]
["№","Наименование ","Краткие (рамочные) технические характеристики","Вид","Количество","Единица измерения","Итоговое количество","Рекомендации представителей индустрии (указывается конкретное оборудование)"]
[]
["Охрана труда и техника безопасности (дополнительно)"]
["№","Наименование ","Краткие (рамочные) технические характеристики","Вид","Количество","Единица измерения","Итоговое количество","Рекомендации представителей индустрии (указывается конкретное оборудование)"]

{"sheet":"Личный инструмент участника","index":3,"n_rows":45,"n_cols":7,"rows_kept":45,"merged":[[0,0,0,6],[1,0,1,6],[2,0,2,6]]}
["ПРОЕКТ"]
["Инфраструктурный лист для оснащения конкурсной площадки Чемпионата (Региональный этап)\nЭлектромонтаж"]
["Личный инструмент конкурсанта"]
["№","Наименование ","Краткие (рамочные) технические характеристики","Вид","Количество","Единица измерения","Примечание "]
[1,"Набор для монтажа болтовых наконечников и соединителей НМБ-4-230","https://www.iek.ru/products/catalog/izdeliya_elektromontazhnye_i_instrumenty/instrumenty/instrumenty_elektromontazhnye/nabory_dlya_montazha_bolt",null,1,"шт"]
[2,"Пистолет для затяжки и обрезки хомутов ПКХ-519","https://www.iek.ru/products/catalog/izdeliya_elektromontazhnye_i_instrumenty/instrumenty/instrumenty_elektromontazhnye/instrument_dlya_khomutov/",null,1,"шт"]
[3,"Кусачки арматурные (болторез) КПЛ-14 IEK","https://www.iek.ru/products/catalog/izdeliya_elektromontazhnye_i_instrumenty/instrumenty/instrumenty_elektromontazhnye/?class_id=32",null,1,"шт"]
[4,"Устройство для снятия оболочки","https://kazan.vseinstrumenti.ru/ruchnoy-instrument/elektromontazhnyj/dlya-snyatiya-izolyacii/strippery/knipex/izolyatsii-kn-169502sb/",null,1,"шт"]
[5,"Набор отверток плоских (2,2; 2,5; 3,0; 3,2; 4,0; 5,0)","На усмотрение участника",null,1,"шт"]
[6,"Набор отверток крест (0, 1, 2, 3)","На усмотрение участника",null,1,"шт"]
[7,"Набор отверток TX(звезда) (08; 09; 10; 15; 20)","На усмотрение участника",null,1,"шт"]
[8,"Мультиметр универсальный","http://iek5.ru/products/obshheje-instrument-multimetry-i-tokoizmeritelnyje-kleshhi/24583/",null,1,"шт"]
[9,"Ключ разводной, D= 20мм","На усмотрение участника",null,1,"шт"]
[10,"Молоток","На усмотрение участника",null,1,"шт"]
[11,"Кернер","На усмотрение участника",null,1,"шт"]
[12,"Набор сверл, D= 1-10","На усмотрение участника",null,1,"шт"]
[13,"Сверло HAMMER DR MT 6,0-40,0мм*105/13мм","http://www.220-volt.ru/catalog-62251/",null,1,"набор"]
[14,"Коронка по металлу D=22мм, D=32мм","http://www.220-volt.ru/catalog-222321/",null,1,"шт"]
[15,"Ножовка по металлу","На усмотрение участника",null,1,"шт"]
[16,"Ящик для инструмента","На усмотрение участника",null,1,"шт"]
[17,"Карандаш","На усмотрение участника",null,1,"шт"]
[18,"Резинка стирательная большая","На усмотрение участника",null,1,"шт"]
[19,"Маркер","На усмотрение участника",null,1,"шт"]
[20,"Круглогубцы","На усмотрение участника",null,1,"шт"]
[21,"Торцевой ключ и сменные головки","http://leroymerlin.ru/catalogue/instrumenty/gaechnye_klyuchi_i_otvertki/nabory_instrumentov/13811013/",null,1,"шт"]
[22,"Фонарик налобный","На усмотрение участника",null,1,"шт"]
[23,"Набор наконечников 1,5 мм2; 2,5 мм2; 6 мм2","http://iek5.ru/products/obshheje-izdelija-dla-montazha-elektroprovodki-nakonechniki-otvetviteli-sojediniteli-nakonechniki-gilzy-je-mednyje-luzhenyje/",null,1,"шт"]
[24,"Угломер","На усмотрение участника",null,1,"шт"]
[25,"Шуруповерт аккумуляторный","На усмотрение участника",null,1,"шт"]
[26,"Маркировочное устройство P-touch","На усмотрение участника",null,1,"шт"]
[27,"Бумага самоклеящаяся","На усмотрение участника",null,1,"набор"]
[28,"Клещи обжимные КО-04Е 0,5-6,0 мм2 (квадрат) ","http://iek5.ru/products/obshheje-instrument-kleshhi-obzhimnyje/22951/",null,1,"шт"]
[29,"Клещи обжимные КО-02 1,5-2,5мм ИЭК","http://iek5.ru/products/obshheje-instrument-kleshhi-obzhimnyje/22949/",null,1,"шт"]
[30,"Кусачки арматурные (болторез) КПЛ-14","http://iek5.ru/products/obshheje-instrument-kusachki-dla-provolochnyh-lotkov/",null,1,"шт"]
[31,"Кисть малярная (для уборки стружки)","На усмотрение участника",null,1,"шт"]
[32,"Фен технический METABO H16-500","http://www.220-volt.ru/catalog-39191/",null,1,"шт"]
[33,"Пылесос аккумуляторный","На усмотрение участника",null,1,"шт"]
[34,"Угольник металлический","http://www.techport.ru/katalog/products/instrumenty/ruchnoj-instrument/ruchnoj-izmeritelnyj-instrument/ugolniki/ugolnik-slesarnyj-fit-celno-",null,1,"шт"]
[35,"Изолента ПВХ (синий)","На усмотрение участника",null,1,"шт."]
[36,"Изолента ПВХ (желто-зеленый)","На усмотрение участника",null,1,"шт."]
[37,"Изолента ПВХ (белый/черный/красный)","На усмотрение участника",null,1,"шт."]
[38,"Маркер МКН-\"0,1,2,3,4,5,6,7,8,9\" 1,5 мм2 (150шт/упак) IEK","http://iek5.ru/products/obshheje-izdelija-dla-montazha-elektroprovodki-markery-kabelnyje/29836/",null,3,"упак"]
[39,"Маркер МКН-\"0,1,2,3,4,5,6,7,8,9\" 2,5 мм2 (100шт/упак) IEK","http://iek5.ru/products/obshheje-izdelija-dla-montazha-elektroprovodki-markery-kabelnyje/29837/",null,3,"упак"]
[40,"Пила с поворотным стуслом","На усмотрение участника",null,1,"шт"]
[41,"Струбцины","На усмотрение участника",null,4,"шт"]